[Event "DFMM-LV 2023"]
[Site "Braunfels"]
[Date "2023.06.10"]
[Round "4.32"]
[White "Albayrak, Melissa"]
[Black "Krausse, Vanessa"]
[Result "1-0"]
[Annotator "NA RC COMBH"]
[ECO "B22"]
[WhiteElo "1362"]
[BlackElo "1604"]
[PlyCount "103"]
[EventDate "2023.06.09"]
[EventType "team-tourn"]
[EventCountry "GER"]
[SourceTitle "playchess.com"]
[Source "ChessBase"]
[SourceQuality "1"]
[TimeControl "40/5400+30:1800+30"]

1. e4 {[%emt 0:00:01]} c5 {[%emt 0:00:06]} 2. c3 {[%emt 0:00:04]} Nc6 {[%emt 0:01:15]} 3. Nf3 {[%emt 0:00:07]} d6 {[%emt 0:00:27]} 4. d4 {[%emt 0:00:59]} cxd4 {[%emt 0:00:56]} 5. cxd4 {[%emt 0:00:06]} Nf6 {[%emt 0:01:11]} 6. Nc3 {[%emt 0:01:42]} g6 {[%emt 0:01:37]} 7. h3 {[%emt 0:03:53]} Bg7 {[%emt 0:02:09]} 8. Bf4 {[%emt 0:01:35]} O-O {[%emt 0:01:18]} 9. d5 {[%emt 0:01:31]} Nb8 {[%emt 0:12:11]} 10. Bc4 {[%emt 0:02:03]} Nbd7 {[%emt 0:05:03]} 11. O-O {[%emt 0:02:06]} a6 {[%emt 0:02:09]} 12. a4 {[%emt 0:01:10]} b6 {[%emt 0:12:08]} 13. Re1 {[%emt 0:02:12]} Bb7 {[%emt 0:00:41]} 14. Rb1 {[%emt 0:05:58]} Rc8 {[%emt 0:02:28]} 15. Ba2 {[%emt 0:01:17]} Nc5 {[%emt 0:08:54]} 16. e5 {[%emt 0:01:46]} dxe5 {[%emt 0:00:40]} 17. Bxe5 {[%emt 0:00:29]} Ncd7 {[%emt 0:24:45]} 18. Bh2 {[%emt 0:02:45]} Re8 {[%emt 0:01:42]} 19. Ne5 {[%emt 0:10:31]} Nxe5 {[%emt 0:01:52]} 20. Bxe5 {[%emt 0:00:10]} Rc5 {[%emt 0:00:34]} 21. d6 {[%emt 0:06:32]} exd6 {[%emt 0:02:58]} 22. Qxd6 {[%emt 0:00:10]} Qxd6 {[%emt 0:01:18]} 23. Bxd6 {[%emt 0:00:07]} Rg5 {[%emt 0:00:29]} 24. Bg3 {[%emt 0:01:48]} Bf8 {[%emt 0:06:33]} 25. Kh2 {[%emt 0:04:48]} h5 {[%emt 0:02:21]} 26. f3 {[%emt 0:02:40]} Rd8 {[%emt 0:01:23]} 27. Rbd1 {[%emt 0:01:04]} Rxd1 {[%emt 0:00:31]} 28. Rxd1 {[%emt 0:00:04]} Bc6 {[%emt 0:00:59]} 29. Bd6 {[%emt 0:03:38]} Nd7 {[%emt 0:01:48]} 30. Bxf8 {[%emt 0:03:30]} Kxf8 {[%emt 0:00:24]} 31. Rd6 {[%emt 0:01:09]} Rc5 {[%emt 0:01:29]} 32. Rd4 {[%emt 0:02:11]} b5 {[%emt 0:01:28]} 33. Bb3 {[%emt 0:02:36]} bxa4 {[%emt 0:00:28]} 34. Bxa4 {[%emt 0:00:29]} Bxa4 {[%emt 0:00:06]} 35. Rxa4 {[%emt 0:00:07]} Rc6 {[%emt 0:00:28]} 36. Kg3 {[%emt 0:02:11]} Nc5 {[%emt 0:00:24]} 37. Rc4 {[%emt 0:01:33]} Ke8 {[%emt 0:01:27]} 38. Na4 {[%emt 0:01:10]} Nxa4 {[%emt 0:01:03]} 39. Rxc6 {[%emt 0:00:06]} Nxb2 {[%emt 0:00:07]} 40. Rxa6 {[%emt 0:00:24]} Nd3 {[%emt 0:00:43]} 41. Ra3 {[%emt 0:30:28]} Nc5 {[%emt 0:31:04]} 42. Kf4 {[%emt 0:00:43]} Ke7 {[%emt 0:00:42]} 43. Ra7+ {[%emt 0:03:53]} Kf6 {[%emt 0:00:43]} 44. h4 {[%emt 0:02:08]} Nd3+ {[%emt 0:00:00]} 45. Ke3 {[%emt 0:00:00]} Ne1 {[%emt 0:00:00]} 46. Ra2 {[%emt 0:00:00]} Kf5 {[%emt 0:00:00]} 47. g3 {[%emt 0:00:00]} f6 {[%emt 0:00:00]} 48. Re2 {[%emt 0:00:00]} Nxf3 {[%emt 0:00:00]} 49. Kxf3 {[%emt 0:00:00]} g5 {[%emt 0:00:00]} 50. Ra2 {[%emt 0:00:00]} g4+ {[%emt 0:00:00]} 51. Ke3 {[%emt 0:00:00]} Kg6 {[%emt 0:00:00]} 52. Ke4 {[%emt 0:32:36]} 1-0

[Event "DFMM-LV 2023"]
[Site "Braunfels"]
[Date "2023.06.10"]
[Round "4.33"]
[White "Rath, Alina"]
[Black "Roessler, Ulrike"]
[Result "0-1"]
[Annotator "TA"]
[ECO "A21"]
[WhiteElo "2051"]
[BlackElo "2176"]
[PlyCount "90"]
[EventDate "2023.06.09"]
[EventType "team-tourn"]
[EventCountry "GER"]
[SourceTitle "playchess.com"]
[Source "ChessBase"]
[SourceQuality "1"]
[TimeControl "40/5400+30:1800+30"]

{[%evp 15,90,0,10,-13,-14,-17,0,-11,76,3,67,-8,46,-8,31,12,206,199,205,198,208,61,54,0,0,-20,0,0,0,0,81,78,81,82,81,84,383,349,366,373,364,378,360,343,318,161,172,174,329,74,63,59,131,115,148,0,0,0,0,-4,-6,-58,-56,-68,-62,-184,-191,-830,-834,-827,-757,-746,-686,-1404,-1107,-975,-863]} 1. c4 {[%emt 0:00:04]} g6 {[%emt 0:00:03]} 2. g3 {[%emt 0:00:11]} Bg7 {[%emt 0:00:06]} 3. Bg2 {[%emt 0:00:08]} e5 {[%emt 0:00:08]} 4. Nc3 {[%emt 0:00:14]} d6 {[%emt 0:02:00]} 5. e3 {[%emt 0:01:38]} f5 {[%emt 0:05:20]} 6. Nge2 {[%emt 0:01:34]} Nf6 {[%emt 0:01:10]} 7. d3 {[%emt 0:03:23][%cal Bd2d3,Bd3d4,Bd4d5][%mdl 32]} O-O {[%emt 0:02:53]} 8. O-O {[%emt 0:00:08]} c6 {[%emt 0:00:43] 8...c6 was played by the boomers.} 9. d4 {[%emt 0:05:45] A21: English Opening: 1...e5 2 Nc3.} Be6 {[%emt 0:04:21]} 10. d5 {[%emt 0:06:35]} Bf7 {[%emt 0:00:24]} 11. b3 {[%emt 0:00:54] The position is equal.} c5 {[%emt 0:04:22] [#]} (11... e4 $11) 12. Rb1 $146 {[%emt 0:02:28]} (12. e4 $16) ({Predecessor:} 12. e4 Nh5 13. Qd3 Be8 14. Bh3 Bd7 15. exf5 gxf5 16. f4 e4 17. Qd2 b5 18. Rb1 {0-1 Wallrabenstein,U (1973)-Schmidt,T (2036) Bahn-chT Friedrichroda 1997 (7.1)}) 12... a6 {[%emt 0:05:29]} ({Better is} 12... e4 $11) 13. Qd2 {[%emt 0:05:54]} (13. e4 $1 $14) 13... Nbd7 {[%emt 0:00:23]} (13... e4 $11) 14. Bb2 {[%emt 0:02:00]} (14. e4 $14) 14... g5 {[%emt 0:09:14]} 15. f4 {[%emt 0:02:26]} Bg6 $2 {[%emt 0:00:50]} (15... exf4 $11 16. exf4 g4) 16. fxg5 $18 {[%emt 0:04:10]} Nh5 {[%emt 0:00:06]} 17. e4 {[%emt 0:01:21] Threatens to win with exf5.} f4 {[%emt 0:11:12]} 18. h4 {[%emt 0:11:43]} (18. gxf4 exf4 19. h4 (19. Nxf4 $2 Qxg5 20. h4 Qh6 $19) 19... Qe7 20. Nxf4 Bd4+ 21. Kh1 (21. Kh2 $2 Rxf4 22. Rxf4 Nxf4 $19) 21... Ng3+ 22. Kh2 Nxf1+ 23. Rxf1 Ne5 $17) (18. g4 $18) 18... h6 $1 $14 {[%emt 0:07:26]} 19. gxf4 {[%emt 0:03:37]} (19. g4 $1 $14 hxg5 20. gxh5 Bxh5 21. Ng3 fxg3 22. Qxg5 Qxg5 23. hxg5) 19... exf4 $11 {[%emt 0:00:16]} 20. Nxf4 {[%emt 0:04:56]} Nxf4 {[%emt 0:00:08]} (20... Bd4+ {keeps more tension.} 21. Kh1 Ng3+ 22. Kh2 Nxf1+ 23. Rxf1 Ne5) 21. Rxf4 {[%emt 0:00:19]} Bd4+ {[%emt 0:00:06]} 22. Kh1 {[%emt 0:00:18] Strongly threatening Ne2.} hxg5 {[%emt 0:05:26]} (22... Rxf4 $1 $11 {keeps the balance.} 23. Qxf4 Ne5) 23. Rxf8+ $16 {[%emt 0:04:38]} Kxf8 {[%emt 0:01:16]} 24. Ne2 {[%emt 0:10:58]} ({Of course not} 24. Qxg5 Qxg5 25. hxg5 Ke7 $15) (24. hxg5 $2 Ke7 25. Bh3 Qh8 $19) 24... Bxb2 {[%emt 0:02:49]} 25. Rxb2 {[%emt 0:00:05]} g4 $2 {[%emt 0:07:48][%mdl 8192]} (25... gxh4 $16 {was worth a try.} 26. Qh6+ Kf7) 26. Qh6+ $18 {[%emt 0:04:18]} Kf7 {[%emt 0:00:23]} 27. Rb1 $1 {[%emt 0:09:22] Black must now prevent Rf1+.} Ne5 {[%emt 0:06:28]} 28. Rf1+ {[%emt 0:01:23]} Ke7 {[%emt 0:00:29]} 29. Nf4 {[%emt 0:03:31]} (29. Qg7+ Bf7 30. b4 Qh8 31. Qg5+ Kd7 32. bxc5 Rg8 33. Qf5+ Kd8 $18) 29... Bf7 {[%emt 0:00:14]} 30. Kh2 {[%emt 0:03:02]} (30. Nh5 $142) 30... Qg8 {[%emt 0:10:27]} 31. Kg3 {[%emt 0:02:25]} b5 $2 {[%emt 0:01:09]} (31... Rf8 {was necessary.} 32. h5 (32. Ne2 Qg6 $16) 32... Be8) 32. Nh5 $2 {[%emt 0:02:07]} (32. Nd3 $18 Qg6 33. Qxg6 Bxg6 34. Nxe5 dxe5 35. h5) 32... Bxh5 $16 {[%emt 0:07:51]} 33. Qxh5 {[%emt 0:00:04]} Qg7 {[%emt 0:00:07]} (33... bxc4 $14 34. bxc4 (34. Qf5 cxb3 35. axb3 Rb8 $11) 34... Rb8) 34. Qf5 $1 {[%emt 0:00:53] Qe6+ is the strong threat.} Qh6 {[%emt 0:01:10] [#] Prevents Qe6+.} 35. Qg5+ {[%emt 0:02:00]} ({Only move:} 35. b4 $1 $16 {[%cal Rb4c5]}) 35... Qxg5 $11 {[%emt 0:00:05]} 36. hxg5 {[%emt 0:00:06][%mdl 4096] Endgame KRB-KRN} Rg8 {[%emt 0:00:53]} 37. cxb5 {[%emt 0:00:22]} axb5 {[%emt 0:00:05][%cal Oc5c4,Ba6b5,Bb5c4,Bc4c3][%mdl 32]} 38. Rf5 {[%emt 0:00:50]} ({White should play} 38. Rh1 $11) 38... c4 $15 {[%emt 0:00:32] aiming for ...c3.} 39. bxc4 {[%emt 0:01:08]} bxc4 {[%emt 0:00:04]} 40. Bf1 {[%emt 0:01:02]} (40. Rf2 $1 $15) 40... c3 $19 {[%emt 0:03:15]} 41. Rf2 {[%emt 0:31:29] [#]} (41. Bb5) 41... Rf8 $1 {[%emt 0:32:14] ( -> ...Rxf2). Black is clearly winning.} 42. Rc2 {[%emt 0:00:00]} Rxf1 {[%emt 0:00:00]} 43. Rxc3 {[%emt 0:00:00]} Kf7 {[%emt 0:00:00] ...Kg6 would be deadly.} 44. Rc8 {[%emt 0:00:00]} Rg1+ {[%emt 0:00:00]} 45. Kf2 {[%emt 0:00:00]} Ra1 {[%emt 0:00:00] What a fight! A cool game by Roessler.   Weighted Error Value: White=0.73/Black=0.49} 0-1

[Event "DFMM-LV 2023"]
[Site "Braunfels"]
[Date "2023.06.10"]
[Round "4.34"]
[White "Korenova, Martina"]
[Black "Skogvall, Martina"]
[Result "1-0"]
[Annotator "TA"]
[ECO "B22"]
[WhiteElo "2151"]
[BlackElo "1979"]
[PlyCount "57"]
[EventDate "2023.06.09"]
[EventType "team-tourn"]
[EventCountry "GER"]
[SourceTitle "playchess.com"]
[Source "ChessBase"]
[SourceQuality "1"]
[TimeControl "40/5400+30:1800+30"]

{[%evp 16,57,32,-10,-10,-12,29,41,43,32,44,27,40,33,34,32,30,28,16,18,39,21,48,27,256,256,254,208,170,185,449,409,408,328,631,521,855,856,845,848,829,816,746,563]} 1. e4 {[%emt 0:00:02]} c5 {[%emt 0:00:12]} 2. Nf3 {[%emt 0:00:20]} Nc6 {[%emt 0:00:06]} 3. c3 {[%emt 0:06:32]} Nf6 {[%emt 0:00:24]} 4. e5 {[%emt 0:01:07]} Nd5 {[%emt 0:00:07]} 5. d4 {[%emt 0:00:08]} cxd4 {[%emt 0:00:12]} 6. cxd4 {[%emt 0:00:09]} e6 {[%emt 0:01:00]} 7. Nc3 {[%emt 0:02:20]} Nxc3 {[%emt 0:05:55]} 8. bxc3 {[%emt 0:00:32]} d6 {[%emt 0:06:39]} 9. Bd3 {[%emt 0:01:06]} dxe5 {[%emt 0:00:44] B22: Sicilian: 2 c3.} 10. dxe5 {[%emt 0:00:51]} Bd7 {[%emt 0:08:34]} (10... Qa5 $5 {[%cal Ra5c3]} 11. O-O Nxe5 $11) 11. Qe2 {[%emt 0:01:46]} Qc7 {[%emt 0:03:05][%cal Oc6b4] White is slightly better.} 12. O-O {[%emt 0:00:40]} Be7 {[%emt 0:00:54] [#]} 13. Re1 $146 {[%emt 0:09:53]} ({Predecessor:} 13. Rb1 Rc8 14. Rd1 b6 15. Qe4 Bc5 16. Qg4 g6 17. Qf4 Be7 18. Re1 f5 19. Qh6 {1-0 Babikov,I (2268)-Gueci,T (2184) Rilton Cup 48th 2018 (8)}) 13... Rc8 {[%emt 0:07:12]} 14. Rb1 {[%emt 0:10:08]} Na5 {[%emt 0:11:23]} 15. Bd2 {[%emt 0:02:40]} b6 {[%emt 0:01:58]} 16. Ba6 {[%emt 0:03:49]} Rd8 {[%emt 0:05:33]} 17. Nd4 {[%emt 0:03:01]} O-O {[%emt 0:01:25]} 18. Bd3 {[%emt 0:01:40][%cal Od2h6]} (18. Qg4 {with more complications.} f5 19. exf6 Rxf6 20. Bd3) 18... Rfe8 {[%emt 0:06:24]} 19. h4 $40 {[%emt 0:10:17][%cal Bh2h4,Bh4h5,Bh5g6,Bg6h7][%mdl 160] White has some attack.} f5 $2 {[%emt 0:03:35] [#] Wards off Qe4. A mistake that costs the game.} (19... Bc6 $1 $11 {and Black stays safe.}) 20. exf6 $18 {[%emt 0:00:52]} Bxf6 {[%emt 0:00:23]} 21. Qe4 {[%emt 0:06:13]} g6 {[%emt 0:00:15]} 22. h5 $1 {[%emt 0:00:17]} Bxd4 $2 {[%emt 0:04:12]} (22... Bc6 {was necessary.} 23. Qg4 e5) 23. cxd4 {[%emt 0:02:28]} Bc6 {[%emt 0:15:21]} 24. Qg4 {[%emt 0:03:10]} Qg7 {[%emt 0:00:58] [#]} (24... e5) 25. hxg6 {[%emt 0:01:37] White is clearly winning.} ({Worse is} 25. Rxe6 Qxd4 26. Rxe8+ Bxe8 27. Qxd4 Rxd4 $11) 25... h5 {[%emt 0:05:25]} 26. Qxh5 {[%emt 0:01:22]} Rd5 {[%emt 0:04:17]} 27. Qh7+ {[%emt 0:00:50]} Qxh7 {[%emt 0:00:44]} 28. gxh7+ {[%emt 0:00:03]} Kh8 {[%emt 0:00:52]} 29. Bf4 {[%emt 0:31:07] Excellently played by Korenova!   Weighted Error Value: White=0.18 (very precise) /Black=0.82} 1-0

[Event "DFMM-LV 2023"]
[Site "Braunfels"]
[Date "2023.06.10"]
[Round "4.35"]
[White "Bazzazi, Elnaz"]
[Black "Steinbacher, Claudia"]
[Result "0-1"]
[Annotator "TA"]
[ECO "B25"]
[WhiteElo "1827"]
[BlackElo "2039"]
[PlyCount "80"]
[EventDate "2023.06.09"]
[EventType "team-tourn"]
[EventCountry "GER"]
[SourceTitle "playchess.com"]
[Source "ChessBase"]
[SourceQuality "1"]
[TimeControl "40/5400+30:1800+30"]

{[%evp 14,80,-14,-27,2,8,7,13,27,24,23,29,24,0,2,0,0,0,0,0,8,0,24,6,16,3,47,25,29,18,25,-18,-8,-30,-6,-29,0,0,-8,-87,-83,-88,-83,-70,-68,-111,-62,-72,-21,-143,-150,-175,-132,-125,-139,-208,-208,-204,-211,-287,-238,-304,-275,-809,-773,-1419,-1193,-2700,-2165]} 1. e4 {[%emt 0:00:04]} c5 {[%emt 0:00:01]} 2. Nc3 {[%emt 0:00:10]} Nc6 {[%emt 0:00:23]} 3. g3 {[%emt 0:00:17]} g6 {[%emt 0:00:14]} 4. Bg2 {[%emt 0:00:14]} Bg7 {[%emt 0:00:02]} 5. d3 {[%emt 0:00:08]} d6 {[%emt 0:02:28]} 6. Nh3 {[%emt 0:00:39]} e6 {[%emt 0:04:51]} 7. O-O {[%emt 0:00:51]} Nge7 {[%emt 0:00:03]} 8. Be3 {[%emt 0:00:24]} a6 {[%emt 0:00:17] B25: Closed Sicilian: 3 g3, lines without early Be3.} 9. Qd2 {[%emt 0:00:40]} O-O {[%emt 0:02:32]} 10. Bh6 {[%emt 0:00:38]} Nd4 {[%emt 0:01:25] The position is equal.} 11. Nd1 {[%emt 0:03:31]} e5 {[%emt 0:02:19] [#] Strongly threatening ...Bxh3.} 12. Bxg7 {[%emt 0:17:30]} Kxg7 {[%emt 0:00:02] [#]} 13. f3 $146 {[%emt 0:00:17][%cal Bf2f3,Bf3f4][%mdl 32]} ({Predecessor:} 13. c3 Ne6 14. Ne3 Nc6 15. f4 exf4 16. Nxf4 Rb8 17. Nfd5 b5 18. Rf6 Ne5 19. Raf1 {1-0 Lim,K-Guyene,T World Cities 1997 (8)}) 13... f6 {[%emt 0:08:23]} 14. c3 {[%emt 0:00:35]} Ndc6 {[%emt 0:00:11]} 15. Ne3 {[%emt 0:04:15]} Be6 {[%emt 0:02:25]} 16. f4 {[%emt 0:03:11]} Qd7 {[%emt 0:10:35]} 17. Nf2 {[%emt 0:02:35]} b5 {[%emt 0:10:10]} 18. Qe2 {[%emt 0:12:38]} (18. Nd5 $5 {[%cal Rd5b6]}) 18... Rab8 {[%emt 0:03:29]} 19. Qf3 {[%emt 0:06:38][%cal Of4f5]} Bf7 {[%emt 0:03:43]} 20. Bh3 {[%emt 0:02:55]} Qd8 {[%emt 0:11:53]} 21. Nfg4 {[%emt 0:00:36] [#] Threatens to win with fxe5.} Ng8 {[%emt 0:00:04]} (21... exf4 {keeps more tension.} 22. Qxf4 Ng8 23. Bg2 h5) 22. Nd1 {[%emt 0:02:25]} exf4 {[%emt 0:04:01]} 23. gxf4 {[%emt 0:00:28]} (23. Qxf4 {with more complications.} h5 24. Nge3 Ne5 25. d4) 23... Nce7 {[%emt 0:04:20]} (23... d5 $5 {[%cal Rd5d4]}) 24. Bg2 {[%emt 0:06:01]} c4 {[%emt 0:05:28]} 25. d4 {[%emt 0:05:30]} f5 {[%emt 0:00:05]} 26. Nge3 {[%emt 0:01:40]} (26. Ngf2 $11 {remains equal.}) 26... fxe4 $17 {[%emt 0:00:39]} 27. Qxe4 {[%emt 0:02:02]} Nf6 {[%emt 0:00:29]} 28. Qc2 {[%emt 0:00:46]} Be6 {[%emt 0:01:03]} 29. Nf2 {[%emt 0:04:25]} Qd7 {[%emt 0:02:25]} ({Black should try} 29... Nfd5 $17 30. Qd2 Nxf4) 30. Rae1 $15 {[%emt 0:03:09]} Nfd5 {[%emt 0:05:15]} (30... Ned5 $17) 31. Nxd5 {[%emt 0:04:40]} (31. Qd2 $1 $11) 31... Nxd5 $17 {[%emt 0:00:13]} 32. f5 {[%emt 0:02:58]} Bxf5 {[%emt 0:02:20]} 33. Qd2 {[%emt 0:01:06]} Nf6 {[%emt 0:03:00] Black is more active.} (33... Be6 {feels hotter.} 34. Ne4 Rbe8 35. Qg5 Bf5) 34. d5 {[%emt 0:03:12]} (34. Nh1 $17 {was worth a try.}) 34... Qa7 $19 {[%emt 0:05:15] aiming for ...Bd3.} 35. Kh1 {[%emt 0:00:58]} Rbe8 {[%emt 0:00:17][%cal Bb8e8,Be8e5,Be5f5][%mdl 32]} 36. Qf4 {[%emt 0:01:50]} Qc5 {[%emt 0:02:05]} 37. Rd1 {[%emt 0:05:42]} Re5 {[%emt 0:00:27][%cal Rf6d5]} 38. Bh3 $2 {[%emt 0:01:11]} (38. Qd2) 38... Nxd5 {[%emt 0:02:36] Black is clearly winning.} 39. Qh4 {[%emt 0:01:24]} Ne3 {[%emt 0:01:09]} 40. Bxf5 {[%emt 0:01:18]} Rexf5 {[%emt 0:00:20] Weighted Error Value: White=0.72/Black=0.26 (precise)} 0-1

[Event "DFMM-LV 2023"]
[Site "Braunfels"]
[Date "2023.06.10"]
[Round "4.36"]
[White "Just, Anita"]
[Black "Von Herman, Brigitte"]
[Result "0-1"]
[Annotator "TA"]
[ECO "C54"]
[WhiteElo "1910"]
[BlackElo "1904"]
[PlyCount "110"]
[EventDate "2023.06.09"]
[EventType "team-tourn"]
[EventCountry "GER"]
[SourceTitle "playchess.com"]
[Source "ChessBase"]
[SourceQuality "1"]
[TimeControl "40/5400+30:1800+30"]

{[%evp 11,109,34,41,39,55,0,0,-7,53,5,9,9,0,-14,1,-72,-52,-70,-87,-72,-32,-73,-36,-49,-31,-31,-10,-56,0,-30,0,-44,-16,-60,-66,-63,-67,-75,-58,-124,-125,-178,-164,-164,-106,-133,-108,-150,-149,-141,-142,-162,-88,-165,-150,-162,-145,-156,-152,-157,-159,-173,-167,-295,-289,-297,-123,-123,0,-322,-123,-145,-62,-146,-102,-162,-160,-169,-172,-317,-315,-319,-252,-244,-161,-383,-393,-707,-635,-664,-653,-1387,-1381,-2066,-2039,-29991,-29992,-29992,-29993,-29995]} 1. e4 {[%emt 0:00:03]} e5 {[%emt 0:00:07]} 2. Nf3 {[%emt 0:00:05]} Nc6 {[%emt 0:00:11]} 3. Bc4 {[%emt 0:00:16]} Bc5 {[%emt 0:00:06]} 4. c3 {[%emt 0:00:20]} Qe7 {[%emt 0:00:07]} 5. O-O {[%emt 0:00:38]} d6 {[%emt 0:00:31]} 6. d3 {[%emt 0:01:34]} Nf6 {[%emt 0:02:17][%cal Bg8f6,Bf6h5,Bh5f4][%mdl 32]} 7. h3 {[%emt 0:02:38] C54: Giuoco Piano: 4 c3 Nf6, main lines with 5 d4 and 5 d3.} (7. b4 $5 Bb6 $8 8. a4 $11) 7... a6 {[%emt 0:02:17]} 8. Be3 {[%emt 0:01:17]} (8. d4 $14 Ba7 9. d5) 8... O-O {[%emt 0:06:04]} 9. Nbd2 {[%emt 0:03:17] [#] The position is equal.} h6 $146 {[%emt 0:02:35]} ({Black should try} 9... Bxe3 $11 10. fxe3 Be6) ({Predecessor:} 9... Na5 10. Bb3 Nxb3 11. Qxb3 Be6 12. Qc2 Bxe3 13. fxe3 c6 14. d4 Rad8 15. Ng5 Bc8 {0-1 Leite,M (1808)-Abrantes,T (2163) Brasilia Etapa do Rei op 2019 (1)}) 10. Re1 {[%emt 0:09:02]} (10. d4 $14 Ba7 11. Re1) 10... Bxe3 $11 {[%emt 0:05:48]} 11. Rxe3 {[%emt 0:00:29]} Nh5 {[%emt 0:06:19]} 12. Nf1 {[%emt 0:05:44]} Nf4 {[%emt 0:01:11]} (12... Na5 $5) 13. N3h2 {[%emt 0:02:50]} (13. d4 $11 {keeps the balance.}) 13... Na5 $17 {[%emt 0:01:55]} 14. Bb3 {[%emt 0:01:04]} Nxb3 {[%emt 0:02:05]} 15. axb3 {[%emt 0:00:11]} Be6 {[%emt 0:04:12]} 16. c4 {[%emt 0:07:57]} a5 {[%emt 0:08:40]} 17. Ng3 {[%emt 0:09:45]} Qg5 {[%emt 0:06:58]} 18. Nf3 {[%emt 0:05:07]} Qg6 {[%emt 0:03:02]} 19. Nh4 {[%emt 0:02:40]} (19. d4 $11) 19... Qg5 {[%emt 0:02:07]} (19... Qf6 $5 {[%cal Rf6h4]} 20. Nf3 c5 $15) 20. Nf3 {[%emt 0:09:04]} Qg6 {[%emt 0:00:09]} 21. Kh2 {[%emt 0:03:16]} Kh7 {[%emt 0:03:18]} 22. Qf1 {[%emt 0:03:39]} (22. d4 {feels hotter.} b6 23. Qd2 Qf6 24. Ne2) 22... Qf6 {[%emt 0:04:12]} 23. Ne2 {[%emt 0:09:28]} g5 {[%emt 0:02:52]} 24. Nfg1 {[%emt 0:02:08]} Bd7 {[%emt 0:05:24]} (24... h5 {keeps more tension.} 25. g3 g4 26. Kh1 Bd7) 25. g3 {[%emt 0:03:25]} ({Better is} 25. Rd1 $15) 25... Ne6 {[%emt 0:02:49]} 26. Rf3 {[%emt 0:03:07]} (26. Rd1 $17) 26... Qg6 $19 {[%emt 0:02:45]} 27. g4 {[%emt 0:02:30]} c5 {[%emt 0:05:13]} (27... h5 $19 28. gxh5 Qxh5) 28. Rg3 {[%emt 0:03:54]} b5 {[%emt 0:05:48]} 29. Nf3 {[%emt 0:01:18]} bxc4 {[%emt 0:01:46]} 30. bxc4 {[%emt 0:00:14]} Rfb8 {[%emt 0:00:47]} 31. Qc1 {[%emt 0:00:38]} Qf6 {[%emt 0:04:04]} (31... f6 $19 32. Kg1 h5) 32. Kg1 {[%emt 0:01:42]} (32. Nc3 $17) 32... Nf4 {[%emt 0:01:54]} 33. Qd2 {[%emt 0:01:09]} Rb4 {[%emt 0:01:01]} 34. Nc3 {[%emt 0:00:44]} Bc6 {[%emt 0:01:52]} 35. Ne1 {[%emt 0:02:44]} Rab8 {[%emt 0:01:30]} 36. Ra2 {[%emt 0:00:13]} Qd8 {[%emt 0:01:24]} 37. Ng2 {[%emt 0:00:59]} (37. Qc2 {keeps fighting.}) 37... Qb6 $1 {[%emt 0:01:09][%cal Rb4b2]} 38. Nd1 {[%emt 0:00:24]} Ba4 {[%emt 0:02:01]} (38... Ra4 $1 $19 {[%cal Ra4a2]} 39. Rxa4 Bxa4) 39. Nge3 $17 {[%emt 0:01:26]} Bc6 {[%emt 0:00:54] Black is much more active. The white rooks are badly placed.} (39... Bb3 $17 40. Ra3 Bxd1 41. Nxd1 Ne6) 40. Nf5 $2 {[%emt 0:00:47][%mdl 8192] [#]} (40. Ng2 $1 $11) 40... Bd7 $2 {[%emt 0:01:05]} (40... Ra4 $1 $19 {[%cal Ra4a2] has better winning chances.} 41. Ra3 Qb4 42. Qxb4 cxb4 43. Rxa4 Bxa4) 41. Nfe3 {[%emt 0:04:30] [#]} Be6 {[%emt 0:04:21]} (41... Ra4 $1 $17 {[%cal Ra4a2]} 42. Rxa4 Bxa4) 42. Nf5 {[%emt 0:07:08]} (42. Nc2 $15) 42... a4 {[%emt 0:00:40]} 43. Ra3 {[%emt 0:02:15]} (43. Kh2 $17 {was worth a try.}) 43... Qa6 {[%emt 0:01:18]} 44. Kh2 {[%emt 0:03:50]} Rb3 {[%emt 0:02:03] ...Rxa3 is the strong threat.} 45. Rxb3 {[%emt 0:01:34]} (45. Ra2 $142) 45... Rxb3 $19 {[%emt 0:00:32][%cal Bb8b3,Bb3a3,Ba3a2,Ba2e2][%mdl 32]} 46. Nc3 {[%emt 0:02:31]} a3 {[%emt 0:04:55]} 47. bxa3 {[%emt 0:01:42]} Rxa3 {[%emt 0:05:51]} 48. Nb5 $2 {[%emt 0:02:22]} (48. Ne3 {is a better defense.}) 48... Ra2 {[%emt 0:00:43]} 49. Qe1 {[%emt 0:01:58]} (49. Nc7 Rxd2 50. Nxa6) 49... Re2 {[%emt 0:02:59]} 50. Qf1 {[%emt 0:01:19]} Qa2 {[%emt 0:00:43]} 51. Rf3 {[%emt 0:02:55] Threatens to win with Nc3.} Qd2 {[%emt 0:02:08] Dodges Nc3. Hoping for ...Bxf5.} 52. Rxf4 {[%emt 0:02:32]} exf4 {[%emt 0:02:32]} 53. Qg1 {[%emt 0:01:09]} Rxf2+ {[%emt 0:01:02] Black mates.} 54. Kh1 {[%emt 0:00:05]} Bxf5 {[%emt 0:00:33]} 55. exf5 {[%emt 0:01:04]} Qe2 {[%emt 0:00:30] Weighted Error Value: White=0.71/Black=0.29 (precise)} 0-1